bitfinex/quotes_SOLUSD_20251228
["timestamp","ask_amount","ask_price","bid_price","bid_amount"]
[1766902252827,0.67,124.02,123.99,15.43]
[1766902268965,0.67,124.02,124.0,0.69]
[1766902311418,3.04882858,124.03,124.0,0.69]
[1766902311717,3.71882858,124.03,124.0,0.69]
[1766902316018,3.04882858,124.03,124.0,0.69]
[1766902316197,3.71882858,124.03,124.0,0.69]
[1766902316401,3.04882858,124.03,124.0,0.69]
[1766902316614,0.67,124.02,124.0,0.69]
[1766902322108,3.71882858,124.02,124.0,0.69]
[1766902325630,0.67,124.02,123.96,82.06721077]
[1766902325834,3.04882858,123.99,123.95,0.71]
[1766902326033,3.71882858,123.98,123.95,0.71]
[1766902326235,3.71882858,123.98,123.95,15.45]
[1766902326635,0.67,123.98,123.95,18.49882858]
[1766902333045,0.67,123.98,123.96,3.04882858]
[1766902335837,0.67,123.98,123.96,3.74882858]
[1766902337458,0.67,123.98,123.97,3.04882858]
[1766902337751,0.67,123.98,123.96,3.74882858]
[1766902341957,0.67,123.98,123.96,2.65219613]
[1766902348961,0.7,123.99,123.96,2.65219613]
[1766902352353,7.75662449,124.04,123.96,30.18674786]
[1766902352664,1.95219613,124.02,123.99,0.7]
[1766902353359,1.95219613,124.03,124.0,9.70882062]
[1766902354465,0.7,124.02,124.0,9.70882062]
[1766902359072,0.30530486,124.01,124.0,9.70882062]
[1766902364075,0.7,124.03,124.0,19.72553287]
[1766902364379,0.7,124.04,124.01,2.65219613]
[1766902364767,0.7,124.04,124.01,10.91319168]
[1766902365273,0.7,124.04,124.01,2.65219613]
[1766902365580,0.7,124.04,124.02,8.26099555]
[1766902366159,2.65219613,124.04,124.02,8.26099555]
[1766902367788,0.7,124.04,124.02,8.26099555]
[1766902367972,2.65219613,124.04,124.02,8.26099555]
[1766902369086,2.65219613,124.04,124.01,8.96099555]
[1766902370483,0.67,124.03,124.01,8.96099555]
[1766902370971,2.62219613,124.04,124.01,0.7]
[1766902371172,2.62219613,124.04,124.02,3.22984375]
[1766902372586,0.67,124.04,124.02,3.22984375]
[1766902374378,0.2,124.05,124.03,0.68]
[1766902374583,0.87,124.05,124.03,0.68]
[1766902374985,0.87,124.05,124.03,3.90958298]
[1766902379887,0.2,124.05,124.03,3.90958298]
[1766902380490,0.2,124.05,124.04,0.68]
[1766902380889,0.2,124.05,124.04,3.85806155]
[1766902392977,0.2,124.05,124.04,0.629]
[1766902401101,0.2,124.07,124.04,0.68]
[1766902401596,2.15219613,124.07,124.04,0.68]
[1766902402190,2.81219613,124.07,124.04,0.68]
[1766902404106,3.90680608,124.07,124.04,0.68]
[1766902407212,3.90680608,124.07,124.05,0.68]
[1766902415216,0.2,124.07,124.05,0.68]
[1766902415423,3.24680608,124.07,124.05,0.68]
[1766902415715,3.90680608,124.07,124.05,0.68]
[1766902416116,0.86,124.07,124.05,0.68]
[1766902416414,3.90680608,124.07,124.05,0.68]
[1766902418294,3.90680608,124.07,124.05,0.629]
[1766902420729,0.2,124.07,124.05,3.67580608]
[1766902420894,0.2,124.07,124.06,0.68]
[1766902428623,0.2,124.07,124.04,15.01533811]
[1766902428926,3.04680608,124.06,124.04,0.69]
[1766902435733,3.70680608,124.06,124.04,0.69]
[1766902436922,3.04680608,124.06,124.04,0.69]
[1766902438025,3.90680608,124.07,124.05,0.66]
[1766902440844,0.2,124.07,124.05,0.66]
[1766902442938,3.24680608,124.07,124.05,0.66]
[1766902456952,0.2,124.07,124.05,0.66]
[1766902457154,3.24680608,124.07,124.05,0.66]
[1766902459353,0.2,124.07,124.05,0.66]
[1766902459553,3.24680608,124.07,124.05,0.66]
[1766902460953,0.2,124.07,124.05,0.66]
[1766902461253,3.24680608,124.07,124.05,0.66]
[1766902462358,0.2,124.08,124.04,11.1082074]
[1766902462654,0.2,124.08,124.06,3.62680608]
[1766902464040,0.2,124.08,124.06,10.58931316]
[1766902466151,0.2,124.08,124.06,10.00931316]
[1766902466356,0.2,124.08,124.06,10.58931316]
[1766902466754,0.2,124.08,124.07,2.52901691]
[1766902468551,0.2,124.09,124.07,10.3889301]
[1766902472258,0.2,124.09,124.08,1.94901691]
[1766902473064,0.88,124.09,124.08,1.94901691]
[1766902475362,0.2,124.09,124.08,1.94901691]
[1766902475546,0.2,124.09,124.08,2.32901691]
[1766902475863,0.2,124.09,124.08,15.1]
[1766902476062,0.2,124.1,124.08,17.04901691]
[1766902479862,0.2,124.1,124.09,1.94901691]
[1766902480868,0.2,124.1,124.08,15.1]
[1766902481164,0.2,124.1,124.08,17.04901691]
[1766902482868,0.88,124.1,124.08,17.04901691]
[1766902483261,0.88,124.1,124.08,16.66901691]
[1766902484463,0.2,124.1,124.08,24.72811524]
[1766902484662,0.2,124.11,124.08,24.72811524]
[1766902484663,0.2,124.11,124.09,2.12901691]
[1766902484857,0.2,124.11,124.1,1.94901691]
[1766902488970,1e-08,124.11,124.1,24.72703463]
[1766902497075,0.70000001,124.11,124.09,14.72]
[1766902497295,0.70000001,124.11,124.08,16.66901691]
[1766902497583,0.70000001,124.11,124.08,24.7283116]
[1766902497775,0.70000001,124.11,124.08,16.66901691]
[1766902500686,0.70000001,124.11,124.08,1.94901691]
[1766902500984,0.70000001,124.11,124.08,16.66901691]
[1766902501374,0.70000001,124.11,124.09,1.94901691]
[1766902504689,0.70000001,124.11,124.08,22.77920984]
[1766902504988,0.70000001,124.11,124.08,24.72822675]
[1766902506496,0.70000001,124.11,124.08,22.77920984]
[1766902506693,0.70000001,124.11,124.09,1.94901691]
[1766902510996,0.70000001,124.11,124.08,22.77920984]
[1766902511297,0.70000001,124.11,124.09,1.94901691]
[1766902514998,0.70000001,124.11,124.08,24.72822675]
[1766902516598,0.70000001,124.11,124.08,22.77920984]
[1766902516777,0.70000001,124.11,124.08,24.72822675]
[1766902524519,0.70000001,124.11,124.08,22.77920984]
[1766902524807,0.70000001,124.11,124.08,24.72822675]
[1766902526011,0.70000001,124.11,124.08,25.8233606]
[1766902528104,0.70000001,124.11,124.08,22.77920984]
[1766902528406,0.70000001,124.11,124.08,25.8233606]
[1766902530214,0.70000001,124.11,124.08,22.77920984]
[1766902530510,0.70000001,124.11,124.08,25.8233606]
[1766902534310,0.70000001,124.11,124.09,3.04415076]
[1766902538418,0.70000001,124.11,124.08,25.8233606]
[1766902548821,0.70000001,124.11,124.08,11.1033606]
[1766902549024,0.70000001,124.11,124.08,25.8233606]
[1766902549722,0.70000001,124.11,124.08,11.1033606]
[1766902549910,0.70000001,124.11,124.08,14.72]
[1766902550114,3.74415077,124.11,124.08,14.72]
[1766902550318,0.7,124.1,124.08,14.72]
[1766902550825,0.7,124.1,124.08,17.76415076]
[1766902551526,0.7,124.1,124.07,8.05968722]
[1766902551729,0.7,124.1,124.07,25.82406061]
[1766902552830,0.7,124.1,124.07,22.77990985]
[1766902553128,0.7,124.1,124.07,25.82406061]
[1766902554730,0.7,124.1,124.08,3.04415076]
[1766902558730,0.7,124.1,124.07,3.04415076]
[1766902558932,3.74415076,124.08,124.05,3.04415076]
[1766902559139,3.74415076,124.08,124.05,17.76415076]
[1766902560220,3.74415076,124.08,124.05,25.82532279]
[1766902563840,3.74415076,124.08,124.05,22.78117203]
[1766902567543,0.7,124.07,124.05,22.78117203]
[1766902576445,0.7,124.07,124.05,8.06117203]
[1766902606996,0.7,124.07,124.04,16.66954452]
[1766902610102,0.7,124.07,124.04,1.94954452]
[1766902610307,0.7,124.07,124.04,16.66954452]
[1766902610507,0.7,124.07,124.04,1.94954452]
[1766902610710,0.7,124.07,124.04,16.66954452]
[1766902612809,0.7,124.07,124.04,1.94954452]
[1766902613010,0.7,124.07,124.04,16.66954452]
[1766902613309,0.7,124.07,124.04,24.73145889]
[1766902616601,0.7,124.07,124.02,8.05803211]
[1766902616810,1.94954452,124.07,124.03,1.94954452]
[1766902617002,0.71,124.06,124.03,1.94954452]
[1766902618315,0.71,124.06,124.03,10.0120598]
[1766902620816,2.65954452,124.06,124.03,10.0120598]
[1766902621316,0.71,124.06,124.03,10.0120598]
[1766902623820,0.71,124.06,124.03,8.06251528]
[1766902623995,0.71,124.06,124.03,10.0120598]
[1766902627013,0.71,124.06,124.03,8.06251528]
[1766902627314,0.71,124.06,124.03,10.0120598]
[1766902630017,0.71,124.06,124.03,8.06251528]
[1766902630314,0.71,124.05,124.03,22.80251528]
[1766902630808,0.71,124.05,124.03,8.06251528]
[1766902633119,0.71,124.05,124.03,10.0120598]
[1766902633324,0.71,124.07,124.04,1.94954452]
[1766902634109,0.71,124.07,124.03,10.0120598]
[1766902634720,1.94954452,124.07,124.03,10.0120598]
[1766902634910,0.68,124.06,124.03,10.0120598]
[1766902645835,0.68,124.06,124.03,8.06251528]
[1766902646020,0.68,124.06,124.03,10.0120598]
[1766902649940,0.68,124.06,124.03,11.10914398]
[1766902658443,0.68,124.06,124.03,8.06251528]
[1766902658649,0.68,124.06,124.03,11.10914398]
[1766902669366,0.68,124.06,124.03,8.06251528]
[1766902672969,0.68,124.06,124.03,11.10914398]
[1766902680877,0.68,124.06,124.03,8.06251528]
[1766902681179,0.68,124.06,124.03,11.10914398]
[1766902682474,0.71,124.09,124.05,3.0466287]
[1766902682661,0.71,124.09,124.06,3.0466287]
[1766902685285,0.71,124.09,124.05,22.80064254]
[1766902685286,0.71,124.08,124.05,22.80064254]
[1766902685461,0.71,124.08,124.05,25.84727124]
[1766902693988,0.71,124.08,124.05,33.90474272]
[1766902698498,0.71,124.08,124.05,30.85811402]
[1766902698797,0.71,124.08,124.05,33.90474272]
[1766902709905,0.71,124.08,124.05,32.80740439]
[1766902711508,0.71,124.08,124.05,30.85811402]
[1766902711697,0.71,124.08,124.05,32.80740439]
[1766902714008,0.71,124.08,124.05,30.85811402]
[1766902714205,0.71,124.08,124.05,32.80740439]
[1766902728501,0.71,124.08,124.05,24.74676185]
[1766902733026,0.71,124.08,124.05,32.8080266]
[1766902739331,0.71,124.08,124.05,30.85873623]
[1766902739523,0.71,124.08,124.05,32.8080266]
[1766902742618,0.66,124.1,124.07,1.94929037]
[1766902744519,0.66,124.1,124.06,11.28850051]
[1766902744732,0.66,124.1,124.07,1.94929037]
[1766902745243,0.66,124.1,124.06,11.28850051]
[1766902745435,0.66,124.1,124.08,1.94929037]
[1766902745940,0.66,124.1,124.07,1.94929037]
[1766902751037,0.66,124.1,124.07,10.00921735]
[1766902751229,0.66,124.1,124.07,1.94929037]
[1766902757563,0.66,124.1,124.07,10.00896693]
[1766902762454,0.66,124.1,124.07,1.94929037]
[1766902770066,0.66,124.1,124.07,3.04484466]
[1766902774778,0.66,124.1,124.08,14.72]
[1766902793511,0.66,124.1,124.08,22.77925736]
[1766902800314,0.66,124.1,124.08,14.72]
[1766902801716,0.66,124.1,124.08,17.76484466]
[1766902801914,0.68000001,124.11,124.09,3.04484466]
[1766902809931,1e-08,124.11,124.09,11.10338084]
[1766902810140,1e-08,124.11,124.1,3.04484466]
[1766902813136,1e-08,124.11,124.09,11.10338084]
[1766902817118,1e-08,124.11,124.09,14.3482255]
[1766902818040,0.68000001,124.11,124.09,14.3482255]
[1766902818237,1e-08,124.11,124.09,14.3482255]
[1766902818838,1e-08,124.11,124.09,11.10338084]
[1766902819936,1e-08,124.11,124.1,3.04484466]
[1766902820439,1e-08,124.11,124.09,11.10338084]
[1766902820738,1e-08,124.11,124.09,14.33061872]
[1766902831744,1e-08,124.11,124.1,3.04484466]
[1766902831944,0.2,124.12,124.1,1.94731805]
[1766902832128,0.88,124.13,124.11,16.66731805]
[1766902832548,2.82731805,124.13,124.09,8.05853618]
[1766902832848,2.82731805,124.13,124.11,14.72]
[1766902833053,0.88,124.13,124.11,14.72]
[1766902845966,0.88,124.13,124.09,13.23283176]
[1766902846146,0.88,124.13,124.11,14.72]
[1766902847062,0.2,124.13,124.11,14.72]
[1766902847266,8.25494841,124.15,124.12,3.8946361]
[1766902847267,1e-08,124.15,124.12,3.8946361]
[1766902847566,0.2,124.16,124.14,1.94731805]
[1766902847746,0.2,124.16,124.15,16.66731805]
[1766902848465,0.2,124.16,124.15,19.89325457]
[1766902849255,0.7,124.17,124.15,27.94802702]
[1766902849466,0.2,124.18,124.16,1.94731805]
[1766902849765,0.2,124.18,124.17,1.94731805]
[1766902850460,0.87,124.18,124.17,1.94731805]
[1766902851167,0.87,124.18,124.16,5.17299443]
[1766902854672,0.67,124.17,124.14,10.71257335]
[1766902854847,0.67,124.17,124.14,33.48391823]
[1766902855347,0.67,124.17,124.14,31.53660018]
[1766902855970,2.61731805,124.17,124.14,31.53660018]
[1766902860468,0.67,124.17,124.14,31.53660018]
[1766902871393,0.67,124.17,124.15,0.71]
[1766902876702,0.89,124.18,124.15,0.71]
[1766902877072,0.89,124.18,124.15,2.65731805]
[1766902877592,0.89,124.18,124.15,10.71187823]
[1766902877999,0.89,124.18,124.16,1.94731805]
[1766902879299,0.89,124.18,124.15,8.76456018]
[1766902879492,0.89,124.18,124.15,10.71187823]
[1766902879708,0.89,124.18,124.15,8.76456018]
[1766902880796,0.2,124.18,124.15,10.00187823]
[1766902881097,0.2,124.18,124.16,0.66]
[1766902882798,0.2,124.18,124.16,2.60731805]
[1766902887700,0.2,124.18,124.16,1.94731805]
[1766902887902,0.2,124.18,124.17,0.66]
[1766902889605,0.2,124.18,124.17,17.32731805]
[1766902890709,1e-08,124.18,124.17,25.38079312]
[1766902891214,0.69,124.17,124.14,14.72]
[1766902891516,0.69,124.17,124.14,15.38]
[1766902896518,0.69,124.17,124.15,0.66]
[1766902899016,1e-08,124.18,124.15,0.66]
[1766902899318,0.69000001,124.18,124.15,3.70109458]
[1766902899486,0.69000001,124.18,124.15,0.66]
[1766902912136,3.73109459,124.18,124.09,83.4292872]
[1766902912350,0.72,124.15,124.12,0.67]
[1766902912521,3.04109458,124.14,124.08,0.67]
[1766902912712,0.72,124.13,124.1,0.67]
[1766902913139,3.76109458,124.14,124.1,0.67]
[1766902913333,3.76109458,124.14,124.11,0.67]
[1766902922740,0.72,124.16,124.13,0.67]
[1766902928657,3.76109458,124.16,124.13,0.67]
[1766902936462,3.76109458,124.16,124.13,15.39]
[1766902937354,0.71000001,124.18,124.14,3.70109458]
[1766902937563,0.71,124.17,124.14,0.66]
[1766902938061,3.75109458,124.17,124.14,0.66]
[1766902946267,0.71,124.15,124.13,14.72]
[1766902946669,0.71,124.15,124.13,15.38]
[1766902946857,3.04109458,124.16,124.13,15.38]
[1766902947064,3.75109458,124.16,124.13,15.38]
[1766902949368,0.71,124.16,124.13,15.38]
[1766902953371,0.71,124.16,124.13,0.66]
[1766902953667,3.04109459,124.18,124.13,25.81713644]
[1766902953872,0.71,124.17,124.14,3.70109458]
[1766902954080,0.71,124.17,124.14,2.60623487]
[1766902955971,0.71,124.17,124.14,0.66]
[1766902965081,0.67000001,124.18,124.15,0.71]
[1766902993691,2.61623488,124.18,124.15,0.71]
[1766902996509,0.67000001,124.18,124.15,0.71]
[1766902999416,1.94623487,124.16,124.12,0.68]
[1766902999714,0.7,124.14,124.12,15.4]
[1766903000393,0.7,124.14,124.12,0.68]
[1766903006220,0.7,124.14,124.11,0.68]
[1766903006522,2.64623487,124.14,124.11,0.68]
[1766903008120,0.7,124.14,124.11,0.68]
[1766903014326,0.7,124.14,124.11,8.73728138]
[1766903014932,8.0537148,124.17,124.07,8.05301449]
[1766903014933,1.94623487,124.12,124.07,8.05301449]
[1766903015122,1.94623487,124.11,124.08,0.68]
[1766903015828,1.94623487,124.11,124.08,8.73931381]
[1766903016128,3.04411739,124.12,124.09,0.68]
[1766903018737,3.04411739,124.1,124.05,11.10490011]
[1766903019030,3.04411739,124.09,124.06,0.68]
[1766903020736,3.04411739,124.08,124.05,0.68]
[1766903024306,3.04411739,124.09,124.05,0.68]
[1766903029440,3.04411739,124.08,124.05,0.68]
[1766903030439,3.04411739,124.08,124.05,14.72]
[1766903030650,3.04411739,124.08,124.06,0.72]
[1766903032236,8.05736846,124.11,124.06,0.72]
[1766903032446,3.04411739,124.08,124.06,0.72]
[1766903032635,3.04411739,124.07,124.02,0.92]
[1766903032835,3.04411739,124.06,124.02,0.92]
[1766903033342,3.04411739,124.06,124.02,15.64]
[1766903033732,3.04411739,124.06,124.02,0.92]
[1766903033935,3.04411739,124.06,124.02,12.02714502]
[1766903034139,3.04411739,124.06,124.03,0.72]
[1766903034451,3.04411739,124.07,124.03,0.72]
[1766903035435,3.04411739,124.07,124.02,3.24411739]
[1766903035639,3.04411739,124.07,124.03,0.72]
[1766903042057,11.10409167,124.07,124.03,0.72]
[1766903049570,3.04411739,124.06,124.03,0.72]
[1766903050258,3.04411739,124.07,124.03,3.76411739]
[1766903050758,3.04411739,124.07,124.04,0.72]
[1766903053373,3.04411739,124.06,124.04,0.72]
[1766903056567,3.04411739,124.07,124.04,0.72]
[1766903060584,3.04411739,124.06,124.04,0.72]
[1766903062584,3.04411739,124.07,124.04,0.72]
[1766903068792,11.1042124,124.07,124.04,0.72]
[1766903069687,3.04411739,124.06,124.04,0.72]
[1766903074694,8.06009501,124.07,124.04,0.72]
[1766903074989,3.04411739,124.06,124.04,0.72]
[1766903075996,1.95020005,124.06,124.04,0.72]
[1766903101129,1.95020005,124.05,124.03,0.72]
[1766903101308,1.95020005,124.04,124.03,0.72]
[1766903114236,10.01103389,124.06,124.03,0.72]
[1766903114546,42.94892447,124.08,124.03,0.72]
[1766903114851,1.95020005,124.06,124.03,0.72]
[1766903117150,8.0597832,124.08,124.03,0.72]
[1766903117453,1.95020005,124.07,124.03,0.72]
[1766903121463,1.95020005,124.07,124.03,15.46]
[1766903121754,1.95020005,124.07,124.04,0.67]
[1766903133382,1.95020005,124.06,124.04,0.67]
[1766903135785,1.95020005,124.07,124.04,0.67]
[1766903136784,1.95020005,124.06,124.04,0.67]
[1766903137990,3.04713653,124.06,124.04,0.67]
[1766903139994,3.04713653,124.07,124.04,0.67]
[1766903164716,3.04713653,124.07,124.03,17.78713653]
[1766903164717,20.14275102,124.12,124.06,0.68]
[1766903164918,3.04713653,124.1,124.07,0.68]
[1766903166900,8.05736846,124.11,124.07,0.68]
[1766903167214,3.04713653,124.1,124.07,0.68]
[1766903173031,3.04713653,124.09,124.07,0.68]
[1766903197469,8.05736846,124.11,124.07,0.68]
[1766903197658,3.04713653,124.1,124.07,0.68]
[1766903199972,1.9489707,124.1,124.07,0.68]
[1766903220198,8.05736846,124.11,124.07,0.68]
[1766903220378,1.9489707,124.1,124.07,0.68]
[1766903224399,8.05736846,124.11,124.07,0.68]
[1766903224695,1.9489707,124.1,124.07,0.68]
[1766903228514,1.9489707,124.09,124.07,0.68]
[1766903230513,1.9489707,124.08,124.04,8.0616888]
[1766903230688,1.9489707,124.08,124.05,0.66]
[1766903230886,8.05815048,124.1,124.05,0.66]
[1766903231090,1.9489707,124.08,124.05,0.66]
[1766903231317,1.9489707,124.07,124.05,0.66]
[1766903249423,1.9489707,124.06,124.05,0.66]
[1766903249836,1.9489707,124.07,124.05,0.66]
[1766903250133,1.9489707,124.07,124.05,0.609]
[1766903262033,3.04653198,124.07,124.05,0.609]
[1766903264235,3.04653198,124.07,124.04,0.69]
[1766903276632,0.07,124.08,124.04,0.69]
[1766903276839,3.04653198,124.07,124.04,0.69]
[1766903277548,3.04653198,124.06,124.04,0.69]
[1766903277747,3.04653198,124.07,124.04,0.69]
[1766903287653,0.07,124.08,124.04,0.69]
[1766903287857,3.04653198,124.07,124.04,0.69]
[1766903294360,11.176119,124.08,124.04,0.69]
[1766903295460,3.04653198,124.07,124.04,0.69]
[1766903310976,3.11653198,124.08,124.04,0.69]
[1766903311174,11.17547334,124.09,124.04,0.69]
[1766903311371,3.04653198,124.08,124.04,3.04653198]
[1766903311549,3.04653198,124.08,124.05,0.66]
[1766903324076,1.94950422,124.08,124.05,0.66]
[1766903333427,18.06599734,124.1,124.05,10.01074304]
[1766903333633,10.00775078,124.1,124.06,0.67]
[1766903334132,8.12824656,124.1,124.06,0.67]
[1766903335732,8.12824656,124.1,124.06,14.74]
[1766903335934,8.12824656,124.1,124.07,0.67]
[1766903343941,14.74,124.11,124.07,0.67]
[1766903343942,10.07663888,124.12,124.08,0.67]
[1766903344111,26.7661431,124.12,124.08,0.67]
[1766903344437,0.07,124.11,124.08,0.67]
[1766903348943,2.01950422,124.11,124.08,0.67]
[1766903353236,0.07,124.11,124.08,0.67]
[1766903353428,2.01950422,124.11,124.08,0.67]
[1766903364952,1.94950422,124.1,124.08,0.67]
[1766903378982,2.01950422,124.11,124.08,0.67]
[1766903379282,1.94950422,124.11,124.08,0.67]
[1766903380777,2.01950422,124.11,124.08,0.67]
[1766903384083,3.11496831,124.11,124.08,0.67]
[1766903385187,32.26651746,124.13,124.08,0.67]
[1766903385480,3.11496831,124.12,124.08,0.67]
[1766903386070,3.04496831,124.12,124.09,0.69]
[1766903387885,8.12637341,124.13,124.09,0.69]
[1766903388086,3.04496831,124.12,124.09,0.69]
[1766903390796,22.79554228,124.14,124.09,0.69]
[1766903391088,11.17051059,124.14,124.1,0.67]
[1766903391293,3.11496831,124.13,124.1,0.67]
[1766903393168,3.04496831,124.13,124.1,0.67]
[1766903402075,3.11496831,124.14,124.1,0.67]
[1766903404297,3.11496831,124.14,124.1,3.04496831]
[1766903404498,3.11496831,124.14,124.11,0.67]
[1766903406307,0.07,124.14,124.11,0.67]
[1766903407508,3.11496831,124.14,124.11,0.67]
[1766903408506,3.04496831,124.14,124.11,0.67]
[1766903409706,19.15506467,124.16,124.12,0.67]
[1766903409707,16.18009636,124.16,124.12,0.67]
[1766903409910,3.11496831,124.16,124.13,0.67]
[1766903410088,0.07,124.16,124.13,0.61900001]
[1766903410292,3.11496831,124.16,124.13,0.61900001]
[1766903410493,0.07,124.16,124.13,0.61900001]
[1766903412418,3.11496831,124.16,124.13,0.61900001]
[1766903414703,3.04496831,124.15,124.13,0.61900001]
[1766903415704,3.16496831,124.14,124.11,0.66]
[1766903415905,3.04496831,124.13,124.11,0.66]
[1766903416611,3.16496831,124.14,124.11,0.66]
[1766903420808,0.12,124.14,124.11,0.66]
[1766903424711,11.10006796,124.15,124.11,0.66]
[1766903424895,11.22006796,124.15,124.11,0.66]
[1766903425817,11.10006796,124.15,124.11,0.66]
[1766903426118,11.22006796,124.15,124.11,0.66]
[1766903426318,3.04496831,124.14,124.11,0.66]
[1766903429225,3.16496831,124.14,124.11,0.66]
[1766903432216,0.12,124.14,124.11,0.66]
[1766903432916,11.10006796,124.15,124.11,0.66]
[1766903433502,11.22006796,124.15,124.11,0.66]
[1766903435937,11.10006796,124.15,124.11,0.66]
[1766903436112,0.12,124.14,124.11,0.66]
[1766903438236,11.10006796,124.15,124.11,0.66]
[1766903438423,3.04496831,124.14,124.11,0.66]
[1766903442034,11.22006796,124.15,124.11,0.66]
[1766903443842,8.17509965,124.15,124.11,0.66]
[1766903444140,11.22006796,124.15,124.11,0.66]
[1766903445944,10.12280505,124.15,124.11,0.66]
[1766903454141,2.0677054,124.17,124.12,0.66]
[1766903454332,2.0677054,124.17,124.12,1.9477054]
[1766903454531,2.0677054,124.17,124.13,0.66]
[1766903455150,0.12,124.16,124.13,0.66]
[1766903458338,0.12,124.17,124.13,0.66]
[1766903460059,2.06770541,124.18,124.14,0.66]
[1766903460760,0.12000001,124.18,124.14,0.66]
[1766903461360,1e-08,124.18,124.15,0.66]
[1766903468394,1.94770541,124.18,124.15,0.66]
[1766903469261,1e-08,124.18,124.15,0.66]
[1766903469877,1.94770541,124.18,124.15,0.66]
[1766903470076,1e-08,124.18,124.15,0.66]
[1766903492388,1e-08,124.18,124.16,0.69]
[1766903493589,1e-08,124.18,124.17,0.69]
[1766903505873,1e-08,124.18,124.17,0.71]
[1766903560427,3.04077768,124.18,124.17,0.71]
[1766903560934,1e-08,124.18,124.17,0.71]
[1766903572133,1e-08,124.18,124.16,0.69]
[1766903596859,2.0661422,124.18,124.12,0.7]
[1766903597040,1.94614219,124.17,124.15,0.7]
[1766903597546,1.94614219,124.16,124.13,0.7]
[1766903597850,1.94614219,124.15,124.13,0.7]
[1766903598865,1.94614219,124.14,124.1,8.05764708]
[1766903599049,1.94614219,124.14,124.12,0.7]
[1766903600370,2.06614219,124.15,124.12,0.7]
[1766903602262,1.94614219,124.15,124.12,0.7]
[1766903603982,8.05367188,124.17,124.12,0.7]
[1766903604146,2.06614219,124.17,124.13,0.7]
[1766903604857,1.94614219,124.17,124.13,0.7]
[1766903605469,2.0661422,124.18,124.14,0.7]
[1766903605682,1.9461422,124.18,124.14,0.7]
[1766903609182,1e-08,124.18,124.14,0.7]
[1766903609387,1.9461422,124.18,124.14,0.7]
[1766903611192,2.0661422,124.18,124.14,0.7]
[1766903615493,0.12000001,124.18,124.14,0.7]
[1766903615791,2.0661422,124.18,124.14,0.7]
[1766903618598,2.0661422,124.18,124.14,14.72]
[1766903618795,2.0661422,124.18,124.15,0.7]
[1766903622596,1.94614219,124.17,124.15,0.7]
[1766903626102,1e-08,124.18,124.15,0.7]
[1766903626287,1e-08,124.18,124.16,0.7]
[1766903633706,1e-08,124.18,124.17,0.71]
[1766903638808,3.04051777,124.18,124.15,0.71]
[1766903641089,3.04051777,124.18,124.16,0.71]
[1766903641405,1e-08,124.18,124.16,0.71]
[1766903643017,3.04051777,124.18,124.16,0.71]
[1766903643908,1e-08,124.18,124.16,0.71]
[1766903700495,1e-08,124.18,124.17,0.7]
[1766903704396,1e-08,124.18,124.17,8.05347507]
[1766903704604,1e-08,124.18,124.17,9.9996371]
[1766903704799,0.2,124.22,124.17,9.9996371]
[1766903705106,0.2,124.22,124.2,0.7]
[1766903705679,0.2,124.22,124.2,1.94616203]
[1766903705892,0.2,124.22,124.21,0.7]
[1766903708308,0.1,124.24,124.21,1.94616203]
[1766903708483,0.1,124.25,124.22,0.7]
[1766903708704,0.1,124.25,124.23,0.7]
[1766903716424,2.66616203,124.25,124.23,0.7]
[1766903717110,0.1,124.25,124.23,0.7]